bitfinex/quotes_ETHUSD_20250923
["timestamp","ask_amount","ask_price","bid_price","bid_amount"]
[1758612055582,1e-08,4213.2,4213.1,3.88505083]
[1758612055772,1e-08,4213.2,4213.1,4.00345083]
[1758612055974,1e-08,4213.2,4213.1,19.08935083]
[1758612056188,1e-08,4213.2,4213.1,19.06561534]
[1758612056988,1e-08,4213.2,4213.1,18.71361534]
[1758612057186,1e-08,4213.2,4213.1,18.47971534]
[1758612059207,1e-08,4213.2,4213.1,19.06561534]
[1758612059380,1e-08,4213.2,4213.1,18.71361534]
[1758612060014,1e-08,4213.2,4213.1,18.47971534]
[1758612060913,1e-08,4213.2,4213.1,17.68771534]
[1758612063412,1e-08,4213.2,4213.1,18.71361534]
[1758612063613,1e-08,4213.2,4213.1,19.06561534]
[1758612064683,1e-08,4213.2,4213.1,22.16071723]
[1758612069136,1e-08,4213.2,4213.1,22.04231723]
[1758612069321,1e-08,4213.2,4213.1,22.16071723]
[1758612070196,1e-08,4213.6,4213.5,3.16532384]
[1758612070396,1e-08,4213.6,4213.5,6.78185622]
[1758612070590,1e-08,4213.6,4213.5,6.90025622]
[1758612070826,1e-08,4213.6,4213.5,21.63415622]
[1758612071040,1e-08,4213.6,4213.5,21.40025622]
[1758612071200,1e-08,4213.6,4213.5,21.63415622]
[1758612071395,1e-08,4213.6,4213.5,21.49534432]
[1758612075129,0.00020001,4213.7,4213.6,6.16526751]
[1758612075301,0.00020001,4213.7,4213.6,8.60810511]
[1758612075502,0.00020001,4213.7,4213.6,6.16526751]
[1758612075729,0.00020001,4213.7,4213.6,20.66526751]
[1758612077531,0.68160001,4213.7,4213.6,19.87326751]
[1758612078426,0.00020001,4213.7,4213.6,19.87326751]
[1758612079908,0.6814,4214.4,4214.0,3.16504224]
[1758612080321,0.2369,4214.3,4214.0,3.16504224]
[1758612080614,0.2369,4214.3,4214.0,17.66504224]
[1758612080925,0.2369,4214.3,4214.0,18.34644224]
[1758612081523,0.001,4214.2,4214.0,18.34644224]
[1758612083368,0.001,4214.2,4214.0,21.34644224]
[1758612083537,0.001,4214.2,4214.0,21.59044224]
[1758612083880,0.001,4214.2,4214.0,24.03327984]
[1758612086270,0.001,4214.2,4214.0,23.78927984]
[1758612089951,0.001,4214.2,4214.0,23.90767984]
[1758612090568,0.001,4214.2,4214.0,24.15167984]
[1758612090984,0.001,4214.2,4214.0,23.90767984]
[1758612091300,0.2369,4214.8,4214.7,2.37264811]
[1758612091593,1e-08,4214.9,4214.7,2.37264811]
[1758612091800,1e-08,4214.9,4214.8,6.18831772]
[1758612091995,1e-08,4214.9,4214.8,6.16459181]
[1758612092198,1e-08,4214.9,4214.8,21.02699181]
[1758612092348,1e-08,4214.9,4214.8,23.82182941]
[1758612099089,1e-08,4215.9,4215.8,3.16402903]
[1758612099293,1e-08,4215.9,4215.8,6.16402903]
[1758612099851,0.44450001,4215.9,4215.8,20.66402903]
[1758612100118,0.44370001,4215.9,4215.8,22.90799963]
[1758612100518,0.2369,4216.0,4215.9,6.16397276]
[1758612100719,0.2369,4217.7,4216.8,2.37146651]
[1758612100934,0.2369,4217.7,4216.8,2.39518117]
[1758612100935,9.97660326,4217.7,4216.8,2.39518117]
[1758612101100,9.97660326,4217.7,4216.8,16.89518117]
[1758612101422,9.97660326,4217.7,4216.8,16.87146651]
[1758612101423,0.2569,4216.9,4216.8,16.87146651]
[1758612102603,0.7014,4216.9,4216.8,16.87146651]
[1758612106103,0.02,4216.9,4216.8,16.87146651]
[1758612106297,0.02,4216.9,4216.8,18.79576776]
[1758612106531,0.6998,4216.9,4216.8,18.79576776]
[1758612111128,0.6998,4216.9,4216.8,18.91416776]
[1758612111330,0.6998,4216.9,4216.8,16.98986651]
[1758612111520,0.6998,4216.9,4216.8,0.1184]
[1758612112516,0.6998,4216.9,4216.8,14.6184]
[1758612114356,0.6998,4216.9,4216.8,16.98986651]
[1758612114902,0.6998,4216.9,4216.8,14.6184]
[1758612116223,10.43950326,4216.9,4216.8,14.5]
[1758612116441,11.72058273,4216.9,4216.8,14.5]
[1758612116639,10.43950326,4216.9,4216.8,14.5]
[1758612117225,10.66086995,4216.9,4216.8,14.5]
[1758612118663,10.66186995,4216.9,4216.8,14.5]
[1758612120117,0.92216669,4216.9,4216.8,14.5]
[1758612123859,0.24236669,4216.9,4216.8,16.87146651]
[1758612124055,0.24236669,4216.9,4216.8,14.5]
[1758612124257,0.92216669,4216.9,4216.8,14.5]
[1758612124881,10.66186995,4216.9,4216.8,14.5]
[1758612125880,0.92216669,4216.9,4216.8,14.5]
[1758612128375,0.92136669,4216.9,4216.8,14.5]
[1758612130290,0.7,4216.9,4216.8,14.5]
[1758612130457,0.92194261,4216.9,4216.8,14.5]
[1758612131164,2.30836427,4216.9,4216.5,0.1184]
[1758612131487,3.0,4216.5,4215.8,0.004]
[1758612131676,3.74448727,4216.8,4215.8,0.004]
[1758612131677,9.73970326,4215.9,4215.8,0.004]
[1758612131873,9.96164587,4215.9,4215.8,0.004]
[1758612132087,10.64144587,4215.9,4215.8,0.004]
[1758612132588,2.37219784,4215.5,4215.4,14.504]
[1758612132886,2.37219784,4215.5,4215.0,0.004]
[1758612132887,2.37242295,4215.1,4215.0,0.004]
[1758612133054,15.33406882,4215.1,4215.0,0.004]
[1758612133254,16.80586882,4215.1,4215.0,0.004]
[1758612133486,2.37279759,4214.5,4213.5,2.3733025]
[1758612133709,2.37279759,4214.5,4213.2,2.62196961]
[1758612133710,9.73970326,4214.2,4213.2,0.2485]
[1758612133886,9.96164587,4214.2,4213.5,2.37331785]
[1758612134086,10.64144587,4214.2,4213.3,0.2485]
[1758612134289,10.41950326,4214.2,4214.1,14.52]
[1758612134661,8.79997429,4214.2,4214.1,14.52]
[1758612136592,12.36152602,4214.2,4214.1,14.52]
[1758612139807,9.98859641,4214.2,4214.1,14.524]
[1758612140312,12.36152602,4214.2,4214.1,14.524]
[1758612141618,15.58191202,4214.2,4214.1,14.524]
[1758612143017,15.58185657,4214.2,4214.1,14.524]
[1758612145228,15.58185657,4214.2,4213.6,0.004]
[1758612145229,2.37321119,4213.7,4213.6,0.004]
[1758612145525,8.59480869,4213.7,4213.6,0.004]
[1758612145826,8.78047429,4213.7,4213.6,0.004]
[1758612146215,11.15368548,4213.7,4213.6,0.004]
[1758612146939,8.78047429,4213.7,4213.6,0.004]
[1758612147322,9.00059641,4213.7,4213.6,0.004]
[1758612147523,2.46829026,4213.8,4213.6,0.004]
[1758612147524,0.09513514,4213.8,4213.6,0.004]
[1758612147694,3.0,4214.0,4213.6,0.6718]
[1758612148029,0.1184,4213.8,4213.7,0.2386]
[1758612148328,0.3385342,4213.8,4213.7,0.2386]
[1758612148903,8.12017429,4214.5,4213.7,0.2386]
[1758612149114,8.12017429,4214.2,4213.7,3.04096551]
[1758612149423,0.22023506,4214.1,4213.8,0.6678]
[1758612149627,8.12017429,4214.2,4213.9,0.2386]
[1758612149921,0.21947175,4214.1,4213.9,0.2386]
[1758612150135,8.12017429,4214.2,4213.8,0.4292]
[1758612150346,8.12017429,4214.2,4213.9,2.61169362]
[1758612150499,8.12017429,4214.2,4213.9,2.80229362]
[1758612150699,8.12017429,4214.2,4214.0,0.6678]
[1758612150896,8.12017429,4214.2,4214.0,0.2386]
[1758612151100,8.12017429,4214.2,4214.1,0.4292]
[1758612151436,8.12017429,4214.2,4214.1,0.2386]
[1758612152552,2.80126333,4214.7,4214.1,0.2386]
[1758612152553,3.0,4214.7,4214.1,0.2386]
[1758612152758,11.12017429,4214.7,4214.2,2.37290478]
[1758612153069,0.71330661,4214.6,4214.3,0.2386]
[1758612153369,0.71330661,4214.6,4214.4,0.2386]
[1758612153579,0.71330661,4214.6,4214.1,0.6678]
[1758612153777,0.71330661,4214.6,4214.2,0.2386]
[1758612154080,0.71330661,4214.6,4214.5,14.5]
[1758612154234,0.94500661,4214.6,4214.5,14.5]
[1758612155567,0.71330661,4214.6,4214.5,14.5]
[1758612157667,0.71330661,4214.6,4214.5,14.7386]
[1758612158571,8.12017429,4215.2,4214.5,15.1678]
[1758612158864,3.71322691,4215.1,4214.6,0.2386]
[1758612159173,0.1184,4214.8,4214.6,0.2386]
[1758612159339,0.1184,4214.8,4214.7,0.2386]
[1758612160171,0.1184,4214.8,4214.5,14.7386]
[1758612160368,0.1184,4214.8,4214.6,0.2386]
[1758612160867,0.1184,4214.8,4214.7,0.2386]
[1758612161168,0.62979032,4214.8,4214.7,0.2386]
[1758612161534,0.62979032,4214.8,4214.7,0.6678]
[1758612161768,0.62979032,4214.8,4214.7,0.2386]
[1758612161956,0.85171804,4214.8,4214.7,0.2386]
[1758612162572,0.85171804,4214.8,4214.7,0.6678]
[1758612162772,0.73331804,4214.8,4214.7,3.04044811]
[1758612162975,0.22192772,4214.8,4214.7,3.04044811]
[1758612163542,0.22192772,4214.8,4214.7,17.54044811]
[1758612169587,0.22192772,4214.8,4214.7,19.11440868]
[1758612169753,0.22192772,4214.8,4214.7,19.70480868]
[1758612170493,0.001,4215.0,4214.9,2.37253552]
[1758612170664,0.001,4215.0,4214.9,2.49093552]
[1758612170851,0.001,4215.0,4214.9,3.20763552]
[1758612171047,0.001,4215.0,4214.9,18.26566388]
[1758612174830,0.0002,4215.0,4214.9,18.26566388]
[1758612175732,0.0002,4215.0,4214.9,17.54896388]
[1758612175912,0.0002,4215.0,4214.9,16.99093552]
[1758612176114,0.7038,4215.0,4214.9,14.5]
[1758612176732,0.2388,4215.0,4214.9,16.87253552]
[1758612176893,0.0002,4215.0,4214.9,16.87253552]
[1758612177313,0.0002,4215.0,4214.9,14.5]
[1758612177513,0.0002,4215.0,4214.9,16.87253552]
[1758612179130,0.0002,4215.0,4214.9,14.5]
[1758612179311,0.2388,4215.0,4214.9,14.5]
[1758612179702,0.0002,4215.0,4214.9,16.87253552]
[1758612180749,0.0002,4215.0,4214.9,17.11723552]
[1758612180916,0.0002,4215.0,4214.9,16.87253552]
[1758612181237,0.0002,4215.0,4214.9,18.56102521]
[1758612184049,0.0002,4215.0,4214.9,22.35302521]
[1758612194692,1e-08,4215.9,4215.6,0.792]
[1758612194892,1e-08,4215.9,4215.8,3.792]
[1758612195093,1e-08,4215.9,4215.8,6.16402903]
[1758612195254,1e-08,4215.9,4215.8,21.38072903]
[1758612196989,1e-08,4215.9,4215.8,21.38162903]
[1758612199315,1e-08,4215.9,4215.8,20.66402903]
[1758612199601,1e-08,4215.9,4215.8,22.99928295]
[1758612199968,0.66340001,4216.1,4216.0,2.3719165]
[1758612200166,0.0192,4216.9,4216.3,2.37174079]
[1758612200466,0.0192,4216.9,4216.2,2.37180218]
[1758612200467,0.22146867,4216.8,4216.2,2.37180218]
[1758612200668,0.0192,4216.9,4216.7,14.5]
[1758612200855,0.65498867,4216.8,4216.7,14.5]
[1758612201057,0.4335,4216.8,4216.7,14.5]
[1758612201983,0.6642,4216.8,4216.7,14.5]
[1758612202495,0.88566768,4216.8,4216.7,14.5]
[1758612204568,1.00406768,4216.8,4216.7,14.5]
[1758612206701,1.00406768,4216.8,4216.4,2.37167688]
[1758612206930,0.6642,4216.7,4216.1,0.1184]
[1758612207074,0.22158744,4216.6,4216.1,0.1184]
[1758612207269,1.73736915,4216.5,4216.1,0.1184]
[1758612207669,1.73736915,4216.5,4216.4,14.5]
[1758612210007,1.95917797,4216.5,4216.4,14.5]
[1758612210224,4.33081321,4216.5,4216.4,14.5]
[1758612210537,4.33081321,4216.5,4215.6,0.1184]
[1758612210538,2.37179268,4216.3,4215.6,0.1184]
[1758612210835,0.1184,4216.4,4214.8,0.2322]
[1758612210836,9.84590409,4215.8,4215.1,0.1184]
[1758612211011,0.88600882,4215.7,4215.1,0.1184]
[1758612211214,0.22180882,4215.6,4215.1,0.1184]
[1758612211513,9.84590409,4215.8,4215.2,14.5]
[1758612211514,0.88600882,4215.5,4215.2,14.5]
[1758612211708,12.21795776,4215.8,4215.2,14.5]
[1758612212023,12.21795776,4215.8,4215.2,2.37236626]
[1758612212024,2.10785983,4215.7,4215.2,2.37236626]
[1758612212221,0.88606405,4215.6,4215.1,0.1184]
[1758612212424,0.22186405,4215.5,4215.1,0.1184]
[1758612212595,0.6642,4215.4,4215.1,0.1184]
[1758612213119,0.6642,4215.3,4215.1,0.1184]
[1758612213301,0.6642,4215.3,4215.1,2.49077825]
[1758612213501,0.6642,4215.2,4215.1,2.49077825]
[1758612213701,1.22179578,4215.7,4215.1,2.49077825]
[1758612213702,0.1184,4215.8,4215.1,0.1184]
[1758612213922,0.88604507,4215.7,4215.3,16.87226621]
[1758612214127,0.88604507,4215.6,4215.3,16.87226621]
[1758612214303,0.22184507,4215.5,4215.3,16.87226621]
[1758612214635,0.6642,4215.6,4215.3,14.5]
[1758612214951,0.22179445,4215.5,4215.3,16.87230899]
[1758612215232,0.6642,4215.6,4215.3,16.87230899]
[1758612215812,0.6642,4215.6,4215.3,14.5]
[1758612216338,0.6642,4215.6,4215.3,16.87230621]
[1758612216937,0.6642,4215.5,4215.0,0.1184]
[1758612217135,0.4335,4215.4,4215.0,0.1184]
[1758612217436,0.6642,4215.4,4215.2,2.37236372]
[1758612217738,0.1184,4215.8,4215.3,16.87229044]
[1758612218039,0.22167029,4215.7,4215.4,2.37225411]
[1758612218240,0.22167029,4215.6,4215.4,2.37225411]
[1758612218399,0.6642,4215.6,4215.4,2.37225411]
[1758612218603,0.3491,4215.8,4215.5,14.5]
[1758612218800,0.22163681,4215.7,4215.2,2.37235099]
[1758612219004,0.22163681,4215.7,4215.0,0.3466]
[1758612219005,0.001,4215.9,4215.3,0.2519231]
[1758612219205,0.001,4215.9,4215.7,2.37203827]
[1758612219634,0.001,4215.9,4215.6,2.4905375]
[1758612219939,0.001,4215.9,4215.8,16.87202903]
[1758612221943,0.001,4215.9,4215.8,2.37202903]
[1758612222107,0.001,4215.9,4215.8,3.07312903]
[1758612222307,0.001,4215.9,4215.8,3.09684932]
[1758612222923,0.001,4215.9,4215.8,17.59684932]
[1758612223208,0.001,4215.9,4215.8,17.57312903]
[1758612223537,0.001,4215.9,4215.8,17.89387579]
[1758612224835,0.0002,4215.9,4215.8,17.24291489]
[1758612225022,0.0002,4215.9,4215.8,16.92216813]
[1758612225224,0.0002,4215.9,4215.8,14.5]
[1758612225541,0.6644,4215.9,4215.8,16.87202903]
[1758612226410,0.0002,4215.9,4215.8,16.87202903]
[1758612226857,0.0002,4215.9,4215.6,0.1184]
[1758612227052,0.0002,4215.9,4215.7,2.3720853]
[1758612227349,0.0002,4215.9,4215.8,2.37202903]
[1758612227757,0.0002,4215.9,4215.8,16.87202903]
[1758612228444,0.7185,4215.9,4215.8,16.87202903]
[1758612229217,0.0002,4215.9,4215.8,16.87202903]
[1758612230951,0.0002,4215.9,4215.8,16.69396656]
[1758612232449,0.7185,4215.9,4215.8,16.69396656]
[1758612232763,0.0002,4215.9,4215.8,16.69396656]
[1758612233317,0.0002,4215.9,4215.8,19.33191715]
[1758612236714,0.0002,4215.9,4215.8,19.19838577]
[1758612236914,0.0002,4215.9,4215.8,19.02034393]
[1758612240475,0.0002,4215.9,4215.8,19.81234393]
[1758612241455,0.0002,4215.9,4215.8,19.93074393]
[1758612242127,0.0192,4216.9,4215.9,2.37197276]
[1758612242128,1e-08,4216.9,4215.9,2.37197276]
[1758612242335,1e-08,4216.9,4216.8,6.16346651]
[1758612242769,1e-08,4216.9,4216.8,20.66346651]
[1758612242947,1e-08,4216.9,4216.8,21.1804926]
[1758612246881,1e-08,4216.9,4216.8,20.35200786]
[1758612247088,1e-08,4216.9,4216.8,20.59700786]
[1758612247400,1e-08,4216.9,4216.8,22.93886332]
[1758612247602,1e-08,4216.9,4216.8,23.38886332]
[1758612248104,1e-08,4216.9,4216.8,22.69386332]
[1758612249120,1e-08,4216.9,4216.8,22.5158817]
[1758612249799,0.46920001,4217.4,4217.2,0.792]
[1758612249999,0.02,4217.9,4216.8,19.84185546]
[1758612250000,0.2483,4217.3,4216.8,2.34185546]
[1758612250202,0.02,4217.9,4216.9,2.37141027]
[1758612250415,0.2483,4217.2,4217.1,2.37129781]
[1758612250597,0.2483,4217.2,4217.1,5.37129781]
[1758612250768,0.2483,4217.2,4217.1,2.37129781]
[1758612250974,0.2483,4217.2,4217.1,16.87129781]
[1758612251583,0.2483,4217.2,4217.1,14.5]
[1758612252100,0.7183,4217.2,4217.1,14.5]
[1758612252475,0.7183,4217.2,4217.1,16.87129781]
[1758612254706,0.02,4217.9,4217.4,2.37110929]
[1758612255009,0.1184,4217.8,4217.4,2.19310836]
[1758612255204,0.7183,4217.7,4217.5,2.37106997]
[1758612255390,0.1184,4217.8,4217.5,2.37106997]
[1758612255599,0.6676,4217.7,4217.5,2.37106997]
[1758612255795,0.6676,4217.6,4217.2,2.37123773]
[1758612256109,0.6676,4217.5,4217.2,2.37123773]
[1758612256310,0.7112,4217.4,4217.2,2.37123773]
[1758612256613,0.1184,4217.8,4217.2,2.37123773]
[1758612256614,0.7112,4217.3,4217.2,2.37123773]
[1758612256776,0.7112,4217.3,4217.2,2.23773658]
[1758612257094,0.001,4217.7,4217.5,2.371048]
[1758612257296,0.001,4217.7,4217.6,2.37101669]
[1758612257612,0.2477,4217.7,4217.6,2.37101669]
[1758612257774,0.001,4217.7,4217.6,2.37101669]
[1758612257974,0.001,4217.7,4217.6,16.87101669]
[1758612258174,0.001,4217.7,4217.6,16.98941669]
[1758612259406,0.4655,4217.7,4217.6,14.6184]
[1758612259576,0.7122,4217.7,4217.6,14.6184]
[1758612259909,0.7122,4217.7,4217.6,14.5]
[1758612260306,0.7122,4217.7,4217.6,16.87101669]
[1758612260873,0.7122,4217.7,4216.8,2.37546295]
[1758612261077,0.7112,4217.6,4217.2,2.48962602]
[1758612261420,0.7112,4217.5,4217.4,2.37108319]
[1758612261911,0.7112,4217.5,4217.4,16.87108319]
[1758612263530,0.7112,4217.5,4217.4,14.5]
[1758612263816,4.31946304,4217.5,4217.4,14.5]
[1758612264031,4.31946304,4217.5,4216.8,0.004]
[1758612264032,3.0,4217.4,4216.8,0.004]
[1758612264181,10.47606228,4216.9,4216.8,0.004]
[1758612264525,18.80228441,4216.9,4216.8,0.004]
[1758612264740,20.24107224,4216.9,4216.8,0.004]
[1758612265043,12.84762023,4216.9,4216.8,0.004]
[1758612265947,16.3578398,4216.9,4216.8,0.004]
[1758612266811,3.0,4216.8,4215.9,0.004]
[1758612267014,8.10465201,4216.2,4214.9,0.09811817]
[1758612267207,8.10465201,4216.2,4215.6,2.37212343]
[1758612267440,0.7112,4216.1,4215.6,2.37212343]
[1758612267754,0.7112,4216.0,4215.6,2.37212343]
[1758612267918,0.7112,4216.0,4214.8,2.37258754]
[1758612267919,0.7112,4216.3,4215.7,2.37203911]
[1758612268120,0.7112,4216.3,4215.4,0.02372254]
[1758612268121,0.7112,4216.3,4215.6,2.37213149]
[1758612268314,0.4645,4216.3,4216.0,14.5]
[1758612268634,0.7112,4216.2,4216.0,14.5]
[1758612268829,0.7112,4216.1,4216.0,14.5]
[1758612272965,0.7112,4216.1,4215.5,2.37219724]
[1758612272966,0.7112,4216.1,4215.3,2.37231039]
[1758612273146,0.7112,4216.0,4214.7,0.6068]
[1758612273458,0.7112,4215.9,4215.2,2.37236287]
[1758612274064,0.7112,4215.9,4215.8,14.5]
[1758612274860,0.7104,4215.9,4215.8,14.5]
[1758612275867,9.02452537,4216.1,4215.9,2.37195421]
[1758612275868,0.91987336,4216.1,4215.9,2.37195421]
[1758612276072,0.4645,4216.3,4215.8,14.5]
[1758612276562,8.10465201,4216.5,4215.8,14.5]
[1758612277077,0.1184,4216.1,4215.7,2.37207458]
[1758612277628,0.1184,4216.1,4215.6,2.37214132]
[1758612277828,0.1184,4216.1,4216.0,14.5]
[1758612278939,0.1184,4216.1,4215.9,2.37197259]
[1758612279137,0.1184,4216.5,4215.8,0.1184]
[1758612279337,0.1184,4216.5,4215.1,0.004]
[1758612279338,0.1184,4216.8,4216.1,0.1184]
[1758612279774,0.7112,4216.7,4216.2,2.3717841]
[1758612279929,0.1184,4216.8,4216.6,14.5]
[1758612280579,0.8296,4216.8,4216.6,14.5]
[1758612280780,0.1184,4216.8,4216.6,14.5]
[1758612280945,0.02,4216.9,4216.6,14.5]
[1758612280946,0.1384,4216.9,4216.6,16.87157254]
[1758612282770,0.1384,4216.9,4216.6,14.5]
[1758612283090,0.8496,4216.9,4216.6,14.5]
[1758612283553,0.7112,4216.8,4216.6,14.5]
[1758612283759,0.7112,4216.7,4216.6,14.5]
[1758612284382,0.02,4216.9,4216.6,14.5]
[1758612284590,0.1184,4216.7,4216.6,14.5]
[1758612285085,0.1184,4216.7,4216.5,2.37163228]
[1758612285587,0.1184,4216.7,4216.1,0.4657]
[1758612285756,0.02,4216.9,4216.3,0.1184]
[1758612285946,0.02,4216.9,4216.7,16.87146951]
[1758612286899,0.02,4216.9,4216.7,16.73793792]
[1758612287183,0.02,4216.9,4216.8,2.37146651]
[1758612287370,0.02,4216.9,4216.8,2.81606651]
[1758612288095,0.02,4216.9,4216.8,2.37146651]
[1758612288859,0.02,4216.9,4216.8,2.95796651]
[1758612289059,0.02,4216.9,4216.8,2.37146651]
[1758612290693,0.02,4216.9,4216.8,16.87146651]
[1758612291003,0.02,4216.9,4216.5,2.37159184]
[1758612291297,0.7256,4216.9,4216.5,2.37159184]
[1758612292106,0.7256,4216.9,4215.5,0.792]
[1758612292107,8.10465201,4216.6,4215.4,0.5865]
[1758612292303,8.12465201,4216.9,4216.2,2.37176214]
[1758612292673,0.7056,4216.8,4216.3,14.5]
[1758612292863,0.7056,4216.7,4216.3,14.5]
[1758612293265,0.4572,4216.7,4216.3,14.5]
[1758612293510,0.92756698,4216.6,4216.3,14.5]
[1758612293689,1.09532676,4216.7,4216.3,14.5]
[1758612293690,11.40386534,4216.5,4216.3,14.5]
[1758612293868,0.7056,4216.4,4216.3,14.5]
[1758612296334,3.07729149,4216.4,4216.3,14.5]
[1758612296633,3.29928253,4216.4,4216.3,14.5]
[1758612296852,2.38984224,4216.4,4216.0,0.004]
[1758612296993,0.7056,4216.4,4215.8,2.37197316]
[1758612297195,0.2219924,4216.3,4215.8,2.37197316]
[1758612297503,0.7056,4216.4,4215.8,2.37197316]
[1758612297504,0.2219924,4216.2,4215.8,2.37201665]
[1758612297826,0.2219924,4216.1,4215.8,2.37201665]
[1758612298125,8.35305201,4216.5,4215.8,2.37201563]
[1758612298330,0.2220023,4216.4,4216.3,14.5]
[1758612298830,0.9276023,4216.4,4216.3,14.5]
[1758612299236,0.2220023,4216.4,4216.3,14.5]
[1758612299798,0.2212023,4216.4,4216.3,14.5]
[1758612299997,0.4696023,4216.4,4216.3,14.5]
[1758612300205,0.2212023,4216.4,4216.3,14.5]
[1758612300838,0.2212023,4216.4,4216.3,17.31634774]
[1758612301136,0.2212023,4216.4,4216.3,14.5]
[1758612301336,0.2212023,4216.4,4216.3,16.87174774]
[1758612301711,0.2212023,4216.4,4216.3,17.31634774]
[1758612301940,0.2212023,4216.4,4216.3,16.87174774]
[1758612302099,0.1184,4216.7,4216.3,14.9446]
[1758612302298,0.1184,4216.7,4216.5,2.3715936]
[1758612302727,0.1184,4216.7,4216.3,16.87169239]
[1758612302916,0.1184,4216.7,4215.8,0.792]
[1758612303147,0.1394,4216.9,4216.5,2.37158664]
[1758612303467,0.1394,4216.9,4216.6,14.5]
[1758612304267,0.2484,4216.8,4216.6,14.5]
[1758612304467,0.7056,4216.8,4216.6,14.5]
[1758612304635,0.2484,4216.8,4216.6,16.8715717]
[1758612304837,0.1394,4216.9,4216.6,16.8715717]
[1758612305037,0.021,4216.9,4216.7,2.371514]
[1758612305575,0.021,4216.9,4216.6,14.5]
[1758612306935,0.021,4216.9,4216.3,0.4446]
[1758612307236,0.021,4216.9,4216.7,2.37146986]
[1758612307562,0.021,4216.9,4216.6,2.37156946]
[1758612307875,0.021,4216.9,4216.8,14.5]
[1758612308960,0.021,4216.9,4216.7,2.37151653]
[1758612309578,0.021,4216.9,4216.3,0.4446]
[1758612309740,0.021,4216.9,4216.5,2.3716156]
[1758612309940,0.021,4216.9,4216.8,14.5]
[1758612311886,0.2432256,4216.9,4216.8,14.5]
[1758612312947,0.4916256,4216.9,4216.8,14.5]
[1758612313179,4.17986363,4216.9,4216.8,14.5]
[1758612313481,1.80845336,4216.9,4216.8,14.5]
[1758612313879,0.9488256,4216.9,4216.8,14.5]
[1758612314945,0.9488256,4216.9,4216.2,2.37174875]
[1758612314946,0.9488256,4216.9,4216.4,2.37164867]
[1758612315146,0.2222256,4216.8,4216.4,2.37164867]
[1758612315345,0.2222256,4216.7,4216.3,2.37173569]
[1758612315575,0.2222256,4216.6,4216.4,0.4362]
[1758612315772,0.021,4216.9,4216.4,2.80789149]
[1758612315973,0.22220804,4216.8,4216.5,2.37163099]
[1758612316178,0.22220804,4216.7,4216.5,2.37163099]
[1758612316344,0.22220804,4216.6,4216.5,2.37163099]
[1758612316546,0.22220804,4216.6,4216.5,16.87163099]
[1758612316845,0.22220804,4216.6,4216.4,2.37169028]
[1758612317051,0.22220804,4216.5,4216.4,2.37169028]
[1758612317787,0.22220804,4216.5,4216.4,2.80799028]
[1758612317994,0.22220804,4216.5,4216.4,17.30799028]
[1758612318705,0.22220804,4216.5,4216.4,16.87169028]
[1758612320309,0.22220804,4216.5,4216.4,14.5]
[1758612320973,0.22220804,4216.5,4216.2,2.37179918]
[1758612321176,0.2422,4216.5,4216.2,2.37179918]
[1758612321375,0.22225565,4216.4,4216.3,2.37172777]
[1758612321996,0.22225565,4216.4,4216.3,16.87172777]
[1758612322690,0.90505565,4216.4,4216.3,14.5]
[1758612324605,0.90425565,4216.4,4216.3,14.5]
[1758612324774,1.23184134,4216.4,4216.3,14.5]
[1758612325170,0.90425565,4216.4,4216.3,14.5]
[1758612325911,3.27594714,4216.4,4216.3,14.5]
[1758612326122,0.90425565,4216.4,4216.3,14.5]
[1758612326322,3.27594714,4216.4,4216.3,14.5]
[1758612326931,3.27594714,4216.4,4216.0,0.004]
[1758612327093,0.32759471,4216.3,4215.6,2.19805158]
[1758612327286,0.6828,4216.2,4215.6,2.19805158]
[1758612327484,0.6828,4216.2,4215.7,2.37207512]
[1758612327690,0.32759471,4216.3,4215.6,2.3721278]
[1758612328020,0.6828,4216.2,4215.5,2.37618471]
[1758612328221,0.4406,4216.2,4215.6,2.37213677]
[1758612328388,0.2422,4216.1,4215.6,2.37213677]
[1758612328590,0.2422,4216.1,4215.5,0.004]
[1758612328591,0.2422,4216.0,4215.5,0.004]
[1758612328793,2.37201779,4215.9,4215.5,0.004]
[1758612329126,3.05473074,4216.0,4215.5,0.004]
[1758612329305,0.6828,4215.8,4215.5,0.004]
[1758612329822,2.37193074,4216.0,4215.5,0.004]
[1758612329823,15.10004101,4215.6,4215.5,0.004]
[1758612330014,2.37225411,4215.4,4215.1,0.004]
[1758612330227,2.37231039,4215.3,4215.1,0.004]
[1758612330429,2.37236667,4215.2,4215.1,0.004]
[1758612330798,3.05516667,4215.2,4215.1,0.004]
[1758612330993,3.64905852,4215.2,4215.1,0.004]
[1758612331891,0.59389185,4215.2,4215.1,0.004]
[1758612332214,2.3723132,4215.3,4215.1,0.004]
[1758612332412,2.6144587,4215.4,4215.1,0.004]
[1758612332631,3.0550587,4215.4,4215.1,0.004]
[1758612332829,2.61452334,4215.3,4215.1,0.004]
[1758612333130,2.37236667,4215.2,4214.4,0.004]
[1758612333541,0.2422,4215.1,4214.4,0.004]
[1758612333741,0.2422,4215.1,4214.4,2.37680472]
[1758612334243,2.61462295,4215.1,4215.0,0.004]
[1758612334414,3.15737238,4215.1,4215.0,0.004]
[1758612334609,3.59797238,4215.1,4215.0,0.004]
[1758612335107,6.59797238,4215.1,4215.0,0.004]
[1758612335741,7.10822268,4215.1,4215.0,0.004]
[1758612336247,6.59797238,4215.1,4215.0,0.004]
[1758612336450,7.10791389,4215.1,4215.0,0.004]
[1758612336608,7.32923591,4215.1,4215.0,0.004]
[1758612337015,0.792,4215.0,4213.0,2.80988451]
[1758612337248,2.37308884,4214.0,4213.0,0.4363]
[1758612337558,2.59443713,4213.9,4213.0,2.80990084]
[1758612337851,2.37317788,4213.8,4213.0,0.4363]
[1758612338013,0.6828,4213.8,4213.2,14.504]
[1758612338214,0.4406,4213.7,4213.2,14.504]
[1758612338531,0.6828,4213.7,4213.2,14.504]